fUSD/lending_fUSD_20240209
["ID","MTS","AMOUNT","RATE_DAILY","PERIOD"]
[313624102,1707487251903,-527.18765139,0.00042465,31]
[313624103,1707487251933,-529.01662287,0.00042465,31]
[313624104,1707487251965,-500.0,0.00042465,31]
[313624105,1707487251997,-526.21446833,0.00042465,31]
[313624106,1707487252027,-791.57,0.00042465,31]
[313624107,1707487252058,-500.0,0.00042465,31]
[313624108,1707487252089,-514.45,0.00042465,31]
[313624109,1707487252120,-500.0,0.00042465,31]
[313624110,1707487252149,-500.0,0.00042465,31]
[313624111,1707487252182,-579.72346296,0.00042465,31]
[313624112,1707487252214,-500.0,0.00042465,31]
[313624113,1707487252243,-500.0,0.00042465,31]
[313624114,1707487252273,-629.47953937,0.00042465,31]
[313624115,1707487252303,-500.0,0.00042465,31]
[313624116,1707487252333,-500.0,0.00042465,31]
[313624117,1707487252363,-500.0,0.00042465,31]
[313624118,1707487252393,-500.0,0.00042465,31]
[313624119,1707487252424,-150.0,0.00042465,31]
[313624120,1707487252459,-515.29668273,0.00042465,31]
[313624121,1707487252490,-882.64,0.00042465,31]
[313624122,1707487252520,-500.0,0.00042465,31]
[313624123,1707487252550,-500.0,0.00042465,31]
[313624124,1707487252581,-500.0,0.00042465,31]
[313624125,1707487252610,-500.0,0.00042465,31]
[313624126,1707487252639,-500.0,0.00042465,31]
[313624127,1707487252670,-534.1828861,0.00042465,31]
[313624128,1707487252699,-500.0,0.00042465,31]
[313624129,1707487252728,-500.0,0.00042465,31]
[313624130,1707487252757,-500.0,0.00042465,31]
[313624131,1707487252786,-500.0,0.00042465,31]
[313624132,1707487252815,-500.0,0.00042465,31]
[313624133,1707487252846,-500.0,0.00042465,31]
[313624134,1707487252875,-500.0,0.00042465,31]
[313624135,1707487252905,-500.0,0.00042465,31]
[313624136,1707487252936,-500.0,0.00042465,31]
[313624137,1707487252969,-654.43,0.00042465,31]
[313624138,1707487253000,-500.0,0.00042465,31]
[313624139,1707487253030,-500.0,0.00042465,31]
[313624140,1707487253062,-503.59,0.00042465,31]
[313624141,1707487253092,-518.94318277,0.00042465,31]
[313624142,1707487253123,-500.0,0.00042465,31]
[313624143,1707487253155,-500.0,0.00042465,31]
[313624144,1707487253186,-500.0,0.00042465,31]
[313624145,1707487253219,-500.0,0.00042465,30]
[313624146,1707487253251,-500.0,0.00042465,31]
[313624147,1707487253282,-500.0,0.00042465,31]
[313624148,1707487253313,-524.45318419,0.00042465,31]
[313624149,1707487253348,-500.0,0.00042465,31]
[313624150,1707487253380,-511.1136694,0.00042465,31]
[313624151,1707487253414,-500.0,0.00042465,31]
[313624152,1707487253448,-500.0,0.00042465,31]
[313624153,1707487253482,-500.0,0.00042465,31]
[313624154,1707487253513,-157.52841832,0.00042465,31]
[313624155,1707487253544,-500.0,0.00042465,31]
[313624156,1707487253574,-500.0,0.00042465,31]
[313624157,1707487253605,-556.45,0.00042465,31]
[313624158,1707487253636,-500.0,0.00042465,31]
[313624159,1707487253667,-591.82214814,0.00042465,31]
[313624160,1707487253697,-500.0,0.00042465,31]
[313624161,1707487253727,-793.37,0.00042465,31]
[313624162,1707487253757,-500.0,0.00042465,31]
[313624163,1707487253788,-500.0,0.00042465,31]
[313624164,1707487253817,-500.0,0.00042465,31]
[313624165,1707487253847,-500.0,0.00042465,31]
[313624166,1707487253881,-500.0,0.00042465,31]
[313624167,1707487253911,-767.91,0.00042465,31]
[313624168,1707487253942,-500.0,0.00042465,31]
[313624169,1707487253974,-675.64,0.00042465,31]
[313624170,1707487254004,-500.0,0.00042465,31]
[313624171,1707487254036,-500.0,0.00042465,31]
[313624172,1707487254066,-523.69462581,0.00042465,31]
[313624173,1707487254102,-566.47,0.00042465,31]
[313624174,1707487254143,-500.0,0.00042465,31]
[313624175,1707487254180,-959.36,0.00042465,31]
[313624176,1707487254215,-500.0,0.00042465,31]
[313624177,1707487254248,-500.0,0.00042465,31]
[313624178,1707487254387,-500.0,0.00042465,31]
[313624179,1707487254424,-500.0,0.00042465,31]
[313624180,1707487254459,-500.0,0.00042465,31]
[313624181,1707487254496,-500.0,0.00042465,31]
[313624182,1707487254529,-500.0,0.00042465,31]
[313624183,1707487254561,-906.86,0.00042465,31]
[313624184,1707487254593,-3115.29,0.00042465,31]
[313624185,1707487254623,-526.90612194,0.00042465,31]
[313624186,1707487254654,-540.08,0.00042465,31]
[313624187,1707487254685,-500.0,0.00042465,31]
[313624188,1707487254715,-518.84,0.00042465,31]
[313624189,1707487254745,-518.42,0.00042465,31]
[313624190,1707487254775,-500.0,0.00042465,31]
[313624191,1707487254805,-8148.69,0.00042465,31]
[313624192,1707487254835,-200.74298451,0.00042465,31]
[313624193,1707487254865,-792.43,0.00042465,31]
[313624194,1707487254895,-500.0,0.00042465,31]
[313624195,1707487254924,-500.0,0.00042465,31]
[313624196,1707487254953,-500.0,0.00042465,31]
[313624197,1707487254983,-562.48,0.00042465,31]
[313624198,1707487255013,-500.0,0.00042465,31]
[313624199,1707487255049,-2542.57,0.00042465,31]
[313624200,1707487255081,-1246.8,0.00042465,31]
[313624201,1707487255112,-500.0,0.00042465,31]
[313624202,1707487255144,-500.0,0.00042465,31]
[313624203,1707487255175,-776.48,0.00042465,31]
[313624204,1707487255206,-500.0,0.00042465,31]
[313624205,1707487255235,-500.0,0.00042465,31]
[313624206,1707487255266,-2162.48,0.00042465,31]
[313624207,1707487255297,-3129.95,0.00042465,31]
[313624208,1707487255329,-500.0,0.00042465,31]
[313624209,1707487255364,-677.1,0.00042465,31]
[313624210,1707487255396,-1314.52,0.00042465,31]
[313624211,1707487255426,-500.0,0.00042465,31]
[313624212,1707487255457,-1064.38,0.00042465,31]
[313624213,1707487255489,-1610.95,0.00042465,31]
[313624214,1707487255519,-500.0,0.00042465,31]
[313624215,1707487255550,-987.1,0.00042465,31]
[313624216,1707487255582,-500.0,0.00042465,31]
[313624217,1707487255612,-558.21,0.00042465,31]
[313624218,1707487255642,-500.0,0.00042465,31]
[313624219,1707487255673,-500.0,0.00042465,31]
[313624220,1707487255705,-1288.44,0.00042465,31]
[313624221,1707487255736,-500.0,0.00042465,31]
[313624222,1707487255767,-923.0,0.00042465,31]
[313624223,1707487255802,-3513.3,0.00042465,31]
[313624224,1707487255833,-2977.12,0.00042465,31]
[313624225,1707487255864,-3585.81,0.00042465,31]
[313624226,1707487255896,-1111.32,0.00042465,31]
[313624227,1707487255927,-4092.82,0.00042465,31]
[313624228,1707487255959,-500.0,0.00042465,31]
[313624229,1707487255989,-500.0,0.00042465,31]
[313624230,1707487256021,-810.54,0.00042465,31]
[313624231,1707487256053,-1445.78,0.00042465,31]
[313624232,1707487256086,-1968.03,0.00042465,31]
[313624233,1707487256119,-2143.34,0.00042465,31]
[313624234,1707487256150,-500.0,0.00042465,31]
[313624235,1707487256186,-842.81,0.00042465,31]
[313624236,1707487256219,-4396.32,0.00042465,31]
[313624237,1707487256249,-500.0,0.00042465,31]
[313624238,1707487256281,-500.0,0.00042465,31]
[313624239,1707487256311,-500.0,0.00042465,31]
[313624240,1707487256343,-1531.14,0.00042465,31]
[313624241,1707487256374,-500.0,0.00042465,31]
[313624242,1707487256409,-3098.41,0.00042465,31]
[313624243,1707487256440,-500.0,0.00042465,31]
[313624244,1707487256475,-500.0,0.00042465,31]
[313624245,1707487256507,-3134.49,0.00042465,31]
[313624246,1707487256539,-500.0,0.00042465,31]
[313624247,1707487256570,-500.0,0.00042465,31]
[313624248,1707487256602,-1285.67,0.00042465,31]
[313624249,1707487256635,-805.62,0.00042465,31]
[313624250,1707487256666,-1725.82,0.00042465,31]
[313624251,1707487256696,-850.45,0.00042465,31]
[313624252,1707487256727,-1105.94,0.00042465,31]
[313624253,1707487256757,-500.0,0.00042465,31]
[313624254,1707487256788,-500.0,0.00042465,31]
[313624255,1707487256818,-555.42,0.00042465,31]
[313624256,1707487256848,-500.0,0.00042465,31]
[313624257,1707487256879,-600.94,0.00042465,31]
[313624258,1707487256910,-24179.07,0.00042465,31]
[313624259,1707487256941,-1181.34,0.00042465,31]
[313624260,1707487256973,-1991.35,0.00042465,31]
[313624261,1707487257004,-500.0,0.00042465,31]
[313624262,1707487257035,-609.11,0.00042465,31]
[313624263,1707487257066,-500.0,0.00042465,31]
[313624264,1707487257098,-2548.88,0.00042465,31]
[313624265,1707487257128,-500.0,0.00042465,31]
[313624266,1707487257159,-2801.13,0.00042465,31]
[313624267,1707487257431,-500.0,0.00042465,31]
[313624268,1707487257464,-565.44,0.00042465,31]
[313624269,1707487257497,-804.55,0.00042465,31]
[313624270,1707487257529,-500.0,0.00042465,31]
[313624271,1707487257559,-500.0,0.00042465,31]
[313624272,1707487257590,-2278.6,0.00042465,31]
[313624273,1707487257622,-696.66,0.00042465,31]
[313624274,1707487257653,-1670.47,0.00042465,31]
[313624275,1707487257684,-500.0,0.00042465,31]
[313624276,1707487257714,-2437.96,0.00042465,31]
[313624277,1707487257745,-885.62,0.00042465,31]
[313624278,1707487257776,-500.0,0.00042465,31]
[313624279,1707487257806,-1332.36,0.00042465,31]
[313624280,1707487257838,-500.0,0.00042465,31]
[313624281,1707487257868,-500.0,0.00042465,31]
[313624282,1707487257898,-651.87,0.00042465,31]
[313624283,1707487257928,-969.78,0.00042465,31]
[313624284,1707487257958,-4470.0,0.00042465,31]
[313624285,1707487257990,-1146.57,0.00042465,31]
[313624286,1707487258024,-500.0,0.00042465,31]
[313624287,1707487258054,-500.0,0.00042465,31]
[313624288,1707487258085,-500.0,0.00042465,31]
[313624289,1707487258115,-1928.88,0.00042465,31]
[313624290,1707487258147,-500.0,0.00042465,31]
[313624291,1707487258177,-500.0,0.00042465,31]
[313624292,1707487258212,-10078.95,0.00042465,31]
[313624293,1707487258242,-500.0,0.00042465,31]
[313624294,1707487258274,-1196.87,0.00042465,31]
[313624295,1707487258305,-4162.47,0.00042465,31]
[313624296,1707487258337,-528.54,0.00042465,31]
[313624297,1707487258369,-2259.42,0.00042465,31]
[313624298,1707487258399,-500.0,0.00042465,31]
[313624299,1707487258432,-1066.85,0.00042465,31]
[313624300,1707487258463,-5424.04,0.00042465,31]
[313624301,1707487258494,-500.0,0.00042465,31]
[313624302,1707487258526,-500.0,0.00042465,31]
[313624303,1707487258559,-1913.56,0.00042465,31]
[313624304,1707487258592,-1793.82,0.00042465,31]
[313624305,1707487258623,-500.0,0.00042465,31]
[313624306,1707487258654,-3060.13,0.00042465,31]
[313624307,1707487258684,-500.0,0.00042465,31]
[313624308,1707487258714,-500.0,0.00042465,31]
[313624309,1707487258745,-500.0,0.00042465,31]
[313624310,1707487258777,-5683.63,0.00042465,31]
[313624311,1707487258807,-1958.55,0.00042465,31]
[313624312,1707487258837,-1516.62,0.00042465,31]
[313624313,1707487258868,-652.08,0.00042465,31]
[313624314,1707487258899,-500.0,0.00042465,31]
[313624315,1707487258930,-500.0,0.00042465,31]
[313624316,1707487258960,-2458.11,0.00042465,31]
[313624317,1707487258991,-500.0,0.00042465,31]
[313624318,1707487259021,-907.73,0.00042465,31]
[313624319,1707487259052,-502.16,0.00042465,31]
[313624320,1707487259094,-4451.57,0.00042465,31]
[313624321,1707487259124,-688.57,0.00042465,31]
[313624322,1707487259154,-500.0,0.00042465,31]
[313624323,1707487259185,-3925.43,0.00042465,31]
[313624324,1707487259217,-500.0,0.00042465,31]
[313624325,1707487259248,-908.3,0.00042465,31]
[313624326,1707487259279,-500.0,0.00042465,31]
[313624327,1707487259309,-500.0,0.00042465,31]
[313624328,1707487259340,-811.04,0.00042465,31]
[313624329,1707487259373,-500.0,0.00042465,31]
[313624330,1707487259406,-2239.6,0.00042465,31]
[313624331,1707487259444,-500.0,0.00042465,31]
[313624332,1707487259477,-500.0,0.00042465,31]
[313624333,1707487259508,-500.0,0.00042465,31]
[313624334,1707487259539,-8191.36,0.00042465,31]
[313624335,1707487259570,-1000000.0,0.000425,30]
[313624336,1707487259608,-5000.0,0.000425,40]
[313624337,1707487259640,-229.0,0.000425,32]
[313624338,1707487259716,-1633876.29,0.000425,30]
[313624339,1707487259748,-500.0,0.00042739,31]
[313624340,1707487259779,-509.84642384,0.00042739,31]
[313624341,1707487259810,-500.0,0.00042739,31]
[313624342,1707487259841,-500.0,0.00042739,31]
[313624343,1707487259878,-500.0,0.00042739,31]
[313624344,1707487259907,-528.00813221,0.00042739,31]
[313624345,1707487259936,-500.0,0.00042739,31]
[313624346,1707487259966,-500.0,0.00042739,31]
[313624347,1707487259995,-500.0,0.00042739,31]
[313624348,1707487260025,-500.0,0.00042739,31]
[313624349,1707487260056,-500.0,0.00042739,31]
[313624350,1707487260092,-500.0,0.00042739,31]
[313624351,1707487260127,-500.0,0.00042739,31]
[313624352,1707487260160,-526.87152664,0.00042739,31]
[313624353,1707487260190,-500.0,0.00042739,31]
[313624354,1707487260222,-500.0,0.00042739,31]
[313624355,1707487260253,-333.10920961,0.00042739,31]
[313624356,1707487260285,-500.0,0.00042739,31]
[313624357,1707487260315,-500.0,0.00042739,31]
[313624358,1707487260349,-500.0,0.00042739,31]
[313624359,1707487260380,-573.75799924,0.00042739,31]
[313624360,1707487260411,-500.0,0.00042739,31]
[313624361,1707487260443,-500.0,0.00042739,31]
[313624362,1707487260473,-500.0,0.00042739,31]
[313624363,1707487260506,-500.0,0.00042739,31]
[313624364,1707487260536,-500.0,0.00042739,31]
[313624365,1707487260566,-500.0,0.00042739,31]
[313624366,1707487260597,-500.0,0.00042739,31]
[313624367,1707487260630,-500.0,0.00042739,31]
[313624368,1707487260659,-500.0,0.00042739,31]
[313624369,1707487260690,-500.0,0.00042739,31]
[313624370,1707487260720,-527.71,0.00042739,31]
[313624371,1707487260750,-500.0,0.00042739,31]
[313624372,1707487260780,-500.0,0.00042739,31]
[313624373,1707487260810,-500.0,0.00042739,31]
[313624374,1707487260839,-500.0,0.00042739,31]
[313624375,1707487260868,-500.0,0.00042739,31]
[313624376,1707487260898,-500.0,0.00042739,31]
[313624377,1707487260929,-500.0,0.00042739,31]
[313624378,1707487260961,-500.0,0.00042739,31]
[313624379,1707487260991,-500.0,0.00042739,31]
[313624380,1707487261023,-500.0,0.00042739,31]
[313624381,1707487261057,-612.65666867,0.00042739,31]
[313624382,1707487261088,-500.0,0.00042739,31]
[313624383,1707487261119,-500.0,0.00042739,31]
[313624384,1707487261149,-500.0,0.00042739,31]
[313624385,1707487261183,-500.0,0.00042739,31]
[313624386,1707487261214,-500.0,0.00042739,31]
[313624387,1707487261244,-500.0,0.00042739,31]
[313624388,1707487261274,-1417.37,0.00042739,31]
[313624389,1707487261305,-374.06916694,0.00042739,31]
[313624390,1707487261338,-500.0,0.00042739,31]
[313624391,1707487261370,-500.0,0.00042739,31]
[313624392,1707487261403,-500.0,0.00042739,31]
[313624393,1707487261436,-500.0,0.00042739,31]
[313624394,1707487261470,-500.0,0.00042739,31]
[313624395,1707487261504,-500.0,0.00042739,31]
[313624396,1707487261535,-500.0,0.00042739,31]
[313624397,1707487261567,-500.0,0.00042739,31]
[313624398,1707487261600,-500.0,0.00042739,31]
[313624399,1707487261630,-500.0,0.00042739,31]
[313624400,1707487261661,-1448.12,0.00042739,31]
[313624401,1707487261691,-370.12807269,0.00042739,31]
[313624402,1707487261722,-509.13631749,0.00042739,31]
[313624403,1707487261752,-500.0,0.00042739,31]
[313624404,1707487261783,-500.0,0.00042739,31]
[313624405,1707487261815,-500.0,0.00042739,31]
[313624406,1707487261846,-500.0,0.00042739,31]
[313624407,1707487261876,-500.0,0.00042739,31]
[313624408,1707487261907,-500.0,0.00042739,31]
[313624409,1707487261937,-912.23,0.00042739,31]
[313624410,1707487261967,-522.25455118,0.00042739,31]
[313624411,1707487261997,-500.0,0.00042739,31]
[313624412,1707487262026,-518.80012877,0.00042739,31]
[313624413,1707487262056,-500.0,0.00042739,31]
[313624414,1707487262091,-500.0,0.00042739,31]
[313624415,1707487262122,-476.13199677,0.00042739,31]
[313624416,1707487262153,-500.0,0.00042739,31]
[313624417,1707487262185,-870.43,0.00042739,31]
[313624418,1707487262216,-500.0,0.00042739,31]
[313624419,1707487262246,-500.0,0.00042739,31]
[313624420,1707487262278,-236.1610045,0.00042739,31]
[313624421,1707487262310,-540.60269548,0.00042739,31]
[313624422,1707487262342,-500.0,0.00042739,31]
[313624423,1707487262372,-500.0,0.00042739,31]
[313624424,1707487262406,-500.0,0.00042739,31]
[313624425,1707487262439,-447.93112621,0.00042739,31]
[313624426,1707487262474,-500.0,0.00042739,31]
[313624427,1707487262504,-500.0,0.00042739,31]
[313624428,1707487262534,-500.0,0.00042739,31]
[313624429,1707487262569,-500.0,0.00042739,31]
[313624430,1707487262601,-500.0,0.00042739,31]
[313624431,1707487262631,-590.03509684,0.00042739,31]
[313624432,1707487262660,-266.94566322,0.00042739,31]
[313624433,1707487262690,-629.46778702,0.00042739,31]
[313624434,1707487262720,-547.74059466,0.00042739,31]
[313624435,1707487262751,-500.0,0.00042739,31]
[313624436,1707487262781,-500.0,0.00042739,31]
[313624437,1707487262812,-500.0,0.00042739,31]
[313624438,1707487262843,-620.97,0.00042739,31]
[313624439,1707487262873,-500.0,0.00042739,31]
[313624440,1707487262904,-500.0,0.00042739,31]
[313624441,1707487262934,-500.0,0.00042739,31]
[313624442,1707487262964,-500.0,0.00042739,31]
[313624443,1707487263107,-500.0,0.00042739,31]
[313624444,1707487263139,-564.88,0.00042739,31]
[313624445,1707487263171,-500.0,0.00042739,31]
[313624446,1707487263203,-203.59964965,0.00042739,31]
[313624447,1707487263233,-540.409079,0.00042739,31]
[313624448,1707487263265,-500.0,0.00042739,31]
[313624449,1707487263297,-500.0,0.00042739,31]
[313624450,1707487263327,-650.82,0.00042739,31]
[313624451,1707487263360,-500.0,0.00042739,31]
[313624452,1707487263391,-500.0,0.00042739,31]
[313624453,1707487263422,-500.0,0.00042739,31]
[313624454,1707487263453,-500.0,0.00042739,31]
[313624455,1707487263486,-500.0,0.00042739,31]
[313624456,1707487263519,-500.0,0.00042739,31]
[313624457,1707487263553,-329.53089661,0.00042739,31]
[313624458,1707487263586,-403.8780765,0.00042739,31]
[313624459,1707487263620,-2937.23,0.00042739,31]
[313624460,1707487263651,-612.32265709,0.00042739,31]
[313624461,1707487263682,-500.0,0.00042739,31]
[313624462,1707487263713,-500.0,0.00042739,31]
[313624463,1707487263743,-511.5962256,0.00042739,31]
[313624464,1707487263774,-150.30488297,0.00042739,31]
[313624465,1707487263804,-500.0,0.00042739,31]
[313624466,1707487263836,-500.0,0.00042739,31]
[313624467,1707487263866,-703.51,0.00042739,31]
[313624468,1707487263901,-569.08,0.00042739,31]
[313624469,1707487263932,-500.0,0.00042739,31]
[313624470,1707487263963,-500.0,0.00042739,31]
[313624471,1707487263993,-500.0,0.00042739,31]
[313624472,1707487264023,-317.34513251,0.00042739,31]
[313624473,1707487264054,-667.56,0.00042739,31]
[313624474,1707487264087,-500.0,0.00042739,31]
[313624475,1707487264118,-500.0,0.00042739,31]
[313624476,1707487264149,-500.0,0.00042739,31]
[313624477,1707487264181,-500.0,0.00042739,31]
[313624478,1707487264213,-500.0,0.00042739,31]
[313624479,1707487264245,-500.0,0.00042739,31]
[313624480,1707487264277,-501.14242831,0.00042739,31]
[313624481,1707487264308,-500.0,0.00042739,31]
[313624482,1707487264344,-500.0,0.00042739,31]
[313624483,1707487264374,-211.1679259,0.00042739,31]
[313624484,1707487264405,-500.0,0.00042739,31]
[313624485,1707487264436,-500.0,0.00042739,31]
[313624486,1707487264468,-500.0,0.00042739,31]
[313624487,1707487264499,-500.0,0.00042739,31]
[313624488,1707487264531,-500.0,0.00042739,31]
[313624489,1707487264561,-500.0,0.00042739,31]
[313624490,1707487264592,-500.0,0.00042739,31]
[313624491,1707487264621,-500.0,0.00042739,31]
[313624492,1707487264652,-500.0,0.00042739,31]
[313624494,1707487264683,-500.0,0.00042739,31]
[313624495,1707487264713,-500.0,0.00042739,31]
[313624496,1707487264743,-500.0,0.00042739,31]
[313624497,1707487264773,-500.0,0.00042739,31]
[313624498,1707487264804,-500.0,0.00042739,31]
[313624499,1707487264835,-500.0,0.00042739,31]
[313624500,1707487264865,-500.0,0.00042739,31]
[313624501,1707487264896,-500.0,0.00042739,31]
[313624502,1707487264926,-500.0,0.00042739,31]
[313624503,1707487264956,-500.0,0.00042739,31]
[313624504,1707487264986,-538.74,0.00042739,31]
[313624505,1707487265015,-500.0,0.00042739,31]
[313624506,1707487265054,-500.0,0.00042739,31]
[313624507,1707487265115,-240.9874472,0.00042739,31]
[313624508,1707487265157,-500.0,0.00042739,31]
[313624509,1707487265189,-500.0,0.00042739,31]
[313624510,1707487265224,-512.72907245,0.00042739,31]
[313624511,1707487265257,-500.0,0.00042739,31]
[313624512,1707487265292,-791.57,0.00042739,31]
[313624513,1707487265331,-500.0,0.00042739,31]
[313624514,1707487265372,-514.45,0.00042739,31]
[313624515,1707487265411,-500.0,0.00042739,31]
[313624516,1707487265449,-500.0,0.00042739,31]
[313624517,1707487265486,-500.0,0.00042739,31]
[313624518,1707487265522,-500.0,0.00042739,31]
[313624519,1707487265555,-255.12000833,0.00042739,31]
[313624520,1707487265590,-372.77281999,0.00042739,31]
[313624521,1707487265625,-500.0,0.00042739,31]
[313624522,1707487265658,-500.0,0.00042739,31]
[313624523,1707487265690,-150.0,0.00042739,31]
[313624524,1707487265723,-882.64,0.00042739,31]
[313624525,1707487265756,-500.0,0.00042739,31]
[313624526,1707487265788,-288.83982106,0.00042739,31]
[313624527,1707487265821,-500.0,0.00042739,31]
[313624528,1707487265855,-500.0,0.00042739,31]
[313624529,1707487265890,-500.0,0.00042739,31]
[313624530,1707487265926,-500.0,0.00042739,31]
[313624531,1707487265968,-500.0,0.00042739,31]
[313624532,1707487266003,-500.0,0.00042739,31]
[313624533,1707487266286,-500.0,0.00042739,31]
[313624534,1707487266328,-500.0,0.00042739,31]
[313624535,1707487266370,-500.0,0.00042739,31]
[313624536,1707487266409,-500.0,0.00042739,31]
[313624537,1707487266449,-224.5506724,0.00042739,31]
[313624538,1707487266488,-500.0,0.00042739,31]
[313624539,1707487266527,-654.43,0.00042739,31]
[313624540,1707487266567,-500.0,0.00042739,31]
[313624541,1707487266606,-500.0,0.00042739,31]
[313624542,1707487266643,-503.59,0.00042739,31]
[313624543,1707487266680,-500.0,0.00042739,31]
[313624544,1707487266714,-500.0,0.00042739,31]
[313624545,1707487266750,-500.0,0.00042739,31]
[313624546,1707487266785,-500.0,0.00042739,30]
[313624547,1707487266818,-500.0,0.00042739,31]
[313624548,1707487266853,-500.0,0.00042739,31]
[313624549,1707487266887,-282.93760953,0.00042739,31]
[313624550,1707487266920,-500.0,0.00042739,31]
[313624551,1707487266953,-572.18551632,0.00042739,31]
[313624552,1707487266987,-609.35804149,0.00042739,31]
[313624553,1707487267021,-500.0,0.00042739,31]
[313624554,1707487267068,-500.0,0.00042739,31]
[313624555,1707487267106,-556.45,0.00042739,31]
[313624557,1707487267145,-196.92171944,0.00042739,31]
[313624558,1707487267178,-500.0,0.00042739,31]
[313624559,1707487267212,-793.37,0.00042739,31]
[313624560,1707487267245,-209.6363408,0.00042739,31]
[313624561,1707487267277,-575.56486635,0.00042739,31]
[313624562,1707487267310,-500.0,0.00042739,31]
[313624563,1707487267344,-509.03114295,0.00042739,31]
[313624564,1707487267378,-500.0,0.00042739,31]
[313624565,1707487267411,-767.91,0.00042739,31]
[313624566,1707487267447,-500.0,0.00042739,31]
[313624567,1707487267480,-675.64,0.00042739,31]
[313624568,1707487267514,-500.0,0.00042739,31]
[313624569,1707487267547,-500.0,0.00042739,31]
[313624570,1707487267581,-566.47,0.00042739,31]
[313624571,1707487267615,-500.0,0.00042739,31]
[313624572,1707487267648,-959.36,0.00042739,31]
[313624573,1707487267680,-310.99921419,0.00042739,31]
[313624574,1707487267713,-341.99838885,0.00042739,31]
[313624575,1707487267746,-506.36489705,0.00042739,31]
[313624576,1707487267778,-264.01302764,0.00042739,31]
[313624577,1707487267810,-500.0,0.00042739,31]
[313624578,1707487267842,-500.0,0.00042739,31]
[313624579,1707487267874,-500.0,0.00042739,31]
[313624580,1707487267905,-906.86,0.00042739,31]
[313624581,1707487267938,-3115.29,0.00042739,31]
[313624582,1707487267971,-540.08,0.00042739,31]
[313624583,1707487268002,-412.71064814,0.00042739,31]
[313624584,1707487268033,-518.84,0.00042739,31]
[313624585,1707487268064,-518.42,0.00042739,31]
[313624586,1707487268100,-500.0,0.00042739,31]
[313624587,1707487268140,-8148.69,0.00042739,31]
[313624588,1707487268179,-792.43,0.00042739,31]
[313624589,1707487268213,-500.0,0.00042739,31]
[313624590,1707487268244,-500.0,0.00042739,31]
[313624591,1707487268276,-500.0,0.00042739,31]
[313624592,1707487268309,-562.48,0.00042739,31]
[313624593,1707487268342,-2542.57,0.00042739,31]
[313624594,1707487268373,-488.85934597,0.00042739,31]
[313624595,1707487268406,-1246.8,0.00042739,31]
[313624596,1707487268438,-500.0,0.00042739,31]
[313624597,1707487268471,-500.0,0.00042739,31]
[313624598,1707487268503,-776.48,0.00042739,31]
[313624599,1707487268534,-500.0,0.00042739,31]
[313624600,1707487268565,-409.53947196,0.00042739,31]
[313624601,1707487268600,-2162.48,0.00042739,31]
[313624602,1707487268631,-3129.95,0.00042739,31]
[313624603,1707487268661,-500.0,0.00042739,31]